[Event "TePe Sigeman & Co Chess Tournament 2024"]
[Site "Elite Plaza Hotel, Gustav Adolfs Torg 49, Malmo, Sweden"]
[Date "2024.04.29"]
[Round "3.1"]
[White "Svidler, Peter"]
[Black "Abdusattorov, Nodirbek"]
[Result "1/2-1/2"]
[TimeControl "90 minutes for 40 moves + 30 minutes for the rest of the game + 30 seconds per move from move one."]
[WhiteTitle "GM"]
[BlackTitle "GM"]
[WhiteFideId "4102142"]
[BlackFideId "14204118"]
[WhiteElo "2689"]
[BlackElo "2765"]

1. c4 {[%clk 01:30:33]} {[%emt 00:00:26]} e5 {[%clk 01:30:44]} {[%emt
00:00:17]} 2. g3 {[%clk 01:30:49]} {[%emt 00:00:14]} c6 {[%clk 01:31:08]}
{[%emt 00:00:06]} 3. d4 {[%clk 01:26:37]} {[%emt 00:04:42]} exd4 {[%clk
01:31:12]} {[%emt 00:00:26]} 4. Qxd4 {[%clk 01:27:01]} {[%emt 00:00:06]} Na6
{[%clk 01:30:20]} {[%emt 00:01:22]} 5. Nf3 {[%clk 01:24:26]} {[%emt 00:03:05]}
Nf6 {[%clk 01:29:34]} {[%emt 00:01:17]} 6. Bg2 {[%clk 01:21:47]} {[%emt
00:03:09]} Bc5 {[%clk 01:29:55]} {[%emt 00:00:08]} 7. Qe5+ {[%clk 01:21:41]}
{[%emt 00:00:36]} Be7 {[%clk 01:30:09]} {[%emt 00:00:16]} 8. Nc3 {[%clk
01:19:58]} {[%emt 00:02:13]} O-O {[%clk 01:29:36]} {[%emt 00:01:03]} 9. O-O
{[%clk 01:19:49]} {[%emt 00:00:39]} Re8 {[%clk 01:29:54]} {[%emt 00:00:12]} 10.
Qf4 {[%clk 01:08:43]} {[%emt 00:11:38]} Bb4 {[%clk 01:14:36]} {[%emt 00:15:48]}
11. Rd1 {[%clk 00:56:38]} {[%emt 00:12:34]} Nc5 {[%clk 01:10:12]} {[%emt
00:04:55]} 12. Bd2 {[%clk 00:54:05]} {[%emt 00:03:03]} Nce4 {[%clk 01:08:46]}
{[%emt 00:01:57]} 13. Rac1 {[%clk 00:44:32]} {[%emt 00:10:03]} d6 {[%clk
00:45:45]} {[%emt 00:23:31]} 14. Nd4 {[%clk 00:33:11]} {[%emt 00:11:52]} Nxd2
{[%clk 00:42:50]} {[%emt 00:03:25]} 15. Rxd2 {[%clk 00:33:02]} {[%emt
00:00:39]} Ba5 {[%clk 00:32:48]} {[%emt 00:10:31]} 16. Nf5 {[%clk 00:18:26]}
{[%emt 00:15:05]} Bxf5 {[%clk 00:31:17]} {[%emt 00:02:01]} 17. Qxf5 {[%clk
00:18:39]} {[%emt 00:00:18]} Re5 {[%clk 00:29:03]} {[%emt 00:02:43]} 18. Qxe5
{[%clk 00:13:53]} {[%emt 00:05:18]} dxe5 {[%clk 00:29:26]} {[%emt 00:00:07]} 19.
Rxd8+ {[%clk 00:14:19]} {[%emt 00:00:03]} Rxd8 {[%clk 00:29:49]} {[%emt
00:00:07]} 20. Ne4 {[%clk 00:14:43]} {[%emt 00:00:06]} Nxe4 {[%clk 00:28:20]}
{[%emt 00:01:59]} 21. Bxe4 {[%clk 00:14:56]} {[%emt 00:00:18]} Rd2 {[%clk
00:28:41]} {[%emt 00:00:08]} 22. Rc2 {[%clk 00:15:14]} {[%emt 00:00:13]} Rd4
{[%clk 00:25:13]} {[%emt 00:03:58]} 23. Bf5 {[%clk 00:14:19]} {[%emt 00:01:25]}
c5 {[%clk 00:23:29]} {[%emt 00:02:15]} 24. e3 {[%clk 00:13:42]} {[%emt
00:01:07]} Rd1+ {[%clk 00:23:37]} {[%emt 00:00:21]} 25. Kg2 {[%clk 00:14:07]}
{[%emt 00:00:04]} h5 {[%clk 00:22:47]} {[%emt 00:01:21]} 26. Be4 {[%clk
00:14:12]} {[%emt 00:00:25]} b6 {[%clk 00:23:12]} {[%emt 00:00:05]} 27. f4
{[%clk 00:11:33]} {[%emt 00:03:09]} exf4 {[%clk 00:23:37]} {[%emt 00:00:06]} 28.
exf4 {[%clk 00:11:53]} {[%emt 00:00:10]} g6 {[%clk 00:23:59]} {[%emt 00:00:08]}
29. Bd5 {[%clk 00:11:27]} {[%emt 00:00:56]} Kf8 {[%clk 00:23:58]} {[%emt
00:00:31]} 30. Kh3 {[%clk 00:07:47]} {[%emt 00:04:10]} Rd4 {[%clk 00:24:06]}
{[%emt 00:00:21]} 31. Re2 {[%clk 00:07:24]} {[%emt 00:00:53]} b5 {[%clk
00:23:34]} {[%emt 00:01:02]} 32. b3 {[%clk 00:07:46]} {[%emt 00:00:08]} Bc3
{[%clk 00:22:30]} {[%emt 00:01:35]} 33. Re3 {[%clk 00:07:03]} {[%emt 00:01:13]}
Ba5 {[%clk 00:20:58]} {[%emt 00:02:02]} 34. Bc6 {[%clk 00:06:03]} {[%emt
00:01:31]} bxc4 {[%clk 00:21:18]} {[%emt 00:00:10]} 35. Re8+ {[%clk 00:06:32]}
Kg7 {[%clk 00:21:41]} {[%emt 00:00:08]} 36. bxc4 {[%clk 00:06:56]} {[%emt
00:00:06]} Rxc4 {[%clk 00:15:12]} {[%emt 00:06:59]} 37. Re7 {[%clk 00:07:08]}
{[%emt 00:00:18]} Bb6 {[%clk 00:11:44]} {[%emt 00:03:58]} 38. Rxf7+ {[%clk
00:06:36]} {[%emt 00:01:02]} Kxf7 {[%clk 00:12:05]} {[%emt 00:00:09]} 39. Bd5+
{[%clk 00:07:04]} {[%emt 00:00:01]} Kf6 {[%clk 00:12:24]} {[%emt 00:00:11]} 40.
Bxc4 {[%clk 00:07:31]} {[%emt 00:00:03]} g5 {[%clk 00:12:33]} {[%emt 00:00:22]}
41. fxg5+ {[%clk 00:07:52]} {[%emt 00:00:09]} 1/2-1/2

[ePGN "0.1;DGT LiveChess/2.2.6"]

[Event "TePe Sigeman & Co Chess Tournament 2024"]
[Site "Elite Plaza Hotel, Gustav Adolfs Torg 49, Malmo, Sweden"]
[Date "2024.04.29"]
[Round "3.2"]
[White "Grandelius, Nils"]
[Black "Ju, Wenjun"]
[Result "1/2-1/2"]
[TimeControl "90 minutes for 40 moves + 30 minutes for the rest of the game + 30 seconds per move from move one."]
[WhiteTitle "GM"]
[BlackTitle "GM"]
[WhiteFideId "1710400"]
[BlackFideId "8603006"]
[WhiteElo "2664"]
[BlackElo "2559"]

1. d4 {[%clk 01:30:36]} {[%emt 00:00:23]} Nf6 {[%clk 01:30:56]} {[%emt
00:00:04]} 2. c4 {[%clk 01:30:31]} {[%emt 00:00:35]} e6 {[%clk 01:31:21]}
{[%emt 00:00:05]} 3. Nc3 {[%clk 01:30:16]} {[%emt 00:00:44]} d5 {[%clk
01:31:43]} {[%emt 00:00:09]} 4. cxd5 {[%clk 01:29:56]} {[%emt 00:00:50]} exd5
{[%clk 01:32:10]} {[%emt 00:00:03]} 5. Bg5 {[%clk 01:29:47]} {[%emt 00:00:38]}
Be7 {[%clk 01:31:52]} {[%emt 00:00:48]} 6. e3 {[%clk 01:29:41]} {[%emt
00:00:36]} h6 {[%clk 01:31:18]} {[%emt 00:01:05]} 7. Bf4 {[%clk 01:28:32]}
{[%emt 00:01:38]} O-O {[%clk 01:29:32]} {[%emt 00:02:16]} 8. Bd3 {[%clk
01:25:53]} {[%emt 00:03:08]} c5 {[%clk 01:25:15]} {[%emt 00:04:48]} 9. Nge2
{[%clk 01:25:52]} {[%emt 00:00:30]} Nc6 {[%clk 01:23:58]} {[%emt 00:01:47]} 10.
O-O {[%clk 01:26:00]} {[%emt 00:00:22]} cxd4 {[%clk 01:14:33]} {[%emt
00:09:57]} 11. Nxd4 {[%clk 01:24:37]} {[%emt 00:01:52]} Nxd4 {[%clk 01:14:30]}
{[%emt 00:00:34]} 12. exd4 {[%clk 01:24:59]} {[%emt 00:00:07]} Bd6 {[%clk
01:14:57]} {[%emt 00:00:03]} 13. Be5 {[%clk 01:24:54]} {[%emt 00:00:34]} Ng4
{[%clk 01:10:49]} {[%emt 00:04:39]} 14. Bg3 {[%clk 01:23:39]} {[%emt 00:01:44]}
Bxg3 {[%clk 01:03:10]} {[%emt 00:08:10]} 15. hxg3 {[%clk 01:23:57]} {[%emt
00:00:12]} Be6 {[%clk 01:03:01]} {[%emt 00:00:39]} 16. Re1 {[%clk 01:08:38]}
{[%emt 00:15:48]} Qg5 {[%clk 00:39:18]} {[%emt 00:24:13]} 17. Be2 {[%clk
00:55:03]} {[%emt 00:14:04]} Rad8 {[%clk 00:38:12]} {[%emt 00:01:37]} 18. Bf3
{[%clk 00:45:22]} {[%emt 00:10:11]} h5 {[%clk 00:37:14]} {[%emt 00:01:29]} 19.
Bxg4 {[%clk 00:34:47]} {[%emt 00:11:05]} Qxg4 {[%clk 00:31:29]} {[%emt
00:06:15]} 20. Qxg4 {[%clk 00:25:39]} {[%emt 00:09:37]} hxg4 {[%clk 00:31:56]}
{[%emt 00:00:03]} 21. Rac1 {[%clk 00:26:02]} {[%emt 00:00:07]} Rd6 {[%clk
00:28:32]} {[%emt 00:03:54]} 22. Ne2 {[%clk 00:17:05]} {[%emt 00:09:27]} g5
{[%clk 00:26:11]} {[%emt 00:02:52]} 23. f4 {[%clk 00:15:52]} {[%emt 00:01:43]}
gxf3 {[%clk 00:23:01]} {[%emt 00:03:40]} 24. gxf3 {[%clk 00:16:19]} {[%emt
00:00:02]} Rc8 {[%clk 00:23:23]} {[%emt 00:00:08]} 25. Rxc8+ {[%clk 00:15:13]}
{[%emt 00:01:37]} Bxc8 {[%clk 00:23:50]} {[%emt 00:00:03]} 26. Rc1 {[%clk
00:15:20]} {[%emt 00:00:22]} Be6 {[%clk 00:21:56]} {[%emt 00:02:24]} 27. Kf2
{[%clk 00:14:34]} {[%emt 00:01:15]} Kf8 {[%clk 00:20:18]} {[%emt 00:02:08]} 28.
Rc7 {[%clk 00:12:14]} {[%emt 00:02:49]} Rd7 {[%clk 00:15:26]} {[%emt 00:05:23]}
29. Rc8+ {[%clk 00:12:07]} {[%emt 00:00:36]} Ke7 {[%clk 00:14:49]} {[%emt
00:01:07]} 30. Ra8 {[%clk 00:11:29]} {[%emt 00:01:09]} a6 {[%clk 00:14:01]}
{[%emt 00:01:19]} 31. Rb8 {[%clk 00:11:43]} {[%emt 00:00:16]} Kd6 {[%clk
00:11:42]} {[%emt 00:02:49]} 32. Nc3 {[%clk 00:10:08]} {[%emt 00:02:04]} Rc7
{[%clk 00:06:50]} {[%emt 00:05:22]} 33. Rd8+ {[%clk 00:09:31]} {[%emt
00:01:06]} Rd7 {[%clk 00:05:53]} {[%emt 00:01:28]} 34. Rh8 {[%clk 00:09:11]}
{[%emt 00:00:49]} f6 {[%clk 00:03:49]} {[%emt 00:02:35]} 35. Rh6 {[%clk
00:05:32]} {[%emt 00:04:09]} Rf7 {[%clk 00:04:17]} {[%emt 00:00:02]} 36. Na4
{[%clk 00:03:37]} {[%emt 00:02:25]} Bf5 {[%clk 00:01:48]} {[%emt 00:02:59]} 37.
g4 {[%clk 00:00:59]} {[%emt 00:03:08]} Bc2 {[%clk 00:00:45]} {[%emt 00:01:32]}
38. Nc3 {[%clk 00:01:24]} {[%emt 00:00:05]} Ke6 {[%clk 00:00:54]} {[%emt
00:00:21]} 39. Rh8 {[%clk 00:01:04]} {[%emt 00:00:49]} Rd7 {[%clk 00:00:50]}
{[%emt 00:00:35]} 40. Rb8 {[%clk 00:00:51]} {[%emt 00:00:43]} Kd6 {[%clk
00:00:37]} {[%emt 00:00:43]} 41. Kg3 {[%clk 00:22:45]} {[%emt 00:08:35]} Bg6
{[%clk 00:27:58]} {[%emt 00:03:08]} 42. Na4 {[%clk 00:18:15]} {[%emt 00:05:00]}
Kc6 {[%clk 00:24:49]} {[%emt 00:03:40]} 43. Nc3 {[%clk 00:09:35]} {[%emt
00:09:10]} Kd6 {[%clk 00:24:51]} {[%emt 00:00:28]} 44. Rf8 {[%clk 00:07:04]}
{[%emt 00:02:59]} Ke7 {[%clk 00:24:48]} {[%emt 00:00:34]} 45. Rh8 {[%clk
00:07:19]} {[%emt 00:00:15]} Bc2 {[%clk 00:17:18]} {[%emt 00:08:00]} 46. Rc8
{[%clk 00:04:54]} {[%emt 00:02:54]} Kd6 {[%clk 00:14:44]} {[%emt 00:03:05]} 47.
Kf2 {[%clk 00:01:25]} {[%emt 00:03:58]} Bg6 {[%clk 00:14:41]} {[%emt 00:00:33]}
48. Rf8 {[%clk 00:00:46]} {[%emt 00:01:09]} Ke7 {[%clk 00:14:08]} {[%emt
00:01:03]} 49. Rb8 {[%clk 00:01:00]} {[%emt 00:00:16]} Bc2 {[%clk 00:09:38]}
{[%emt 00:05:00]} 50. Ke3 {[%clk 00:01:24]} {[%emt 00:00:06]} Kd6 {[%clk
00:08:06]} {[%emt 00:02:01]} 51. Kd2 {[%clk 00:01:46]} {[%emt 00:00:08]} Bg6
{[%clk 00:08:21]} {[%emt 00:00:15]} 52. Rf8 {[%clk 00:01:03]} {[%emt 00:01:13]}
Ke7 {[%clk 00:08:09]} {[%emt 00:00:43]} 53. Rg8 {[%clk 00:01:09]} {[%emt
00:00:22]} Bf7 {[%clk 00:07:54]} {[%emt 00:00:46]} 54. Rb8 {[%clk 00:01:33]}
{[%emt 00:00:05]} Kd6 {[%clk 00:07:51]} {[%emt 00:00:34]} 55. Na4 {[%clk
00:01:58]} {[%emt 00:00:05]} Re7 {[%clk 00:07:39]} {[%emt 00:00:43]} 56. Nc5
{[%clk 00:00:44]} {[%emt 00:01:44]} Kc6 {[%clk 00:08:07]} {[%emt 00:00:01]} 57.
Rc8+ {[%clk 00:00:41]} {[%emt 00:00:33]} Kd6 {[%clk 00:05:55]} {[%emt
00:02:43]} 58. Rh8 {[%clk 00:00:45]} {[%emt 00:00:25]} Bg6 {[%clk 00:06:09]}
{[%emt 00:00:17]} 59. Rh6 {[%clk 00:00:41]} {[%emt 00:00:34]} Rg7 {[%clk
00:06:37]} {[%emt 00:00:02]} 60. Nxb7+ {[%clk 00:00:39]} {[%emt 00:00:32]} Rxb7
{[%clk 00:07:03]} {[%emt 00:00:05]} 61. Rxg6 {[%clk 00:01:05]} {[%emt
00:00:03]} Ke6 {[%clk 00:03:34]} {[%emt 00:03:59]} 62. b3 {[%clk 00:01:22]}
{[%emt 00:00:14]} Rh7 {[%clk 00:03:58]} {[%emt 00:00:06]} 63. Rg8 {[%clk
00:01:47]} {[%emt 00:00:04]} Rh2+ {[%clk 00:04:22]} {[%emt 00:00:06]} 64. Kd3
{[%clk 00:01:19]} {[%emt 00:00:58]} Rxa2 {[%clk 00:04:34]} {[%emt 00:00:19]} 65.
Ra8 {[%clk 00:01:23]} {[%emt 00:00:25]} a5 {[%clk 00:04:01]} {[%emt 00:01:03]}
66. Ra7 {[%clk 00:00:57]} {[%emt 00:00:56]} Kd6 {[%clk 00:03:59]} {[%emt
00:00:31]} 67. Ra6+ {[%clk 00:01:00]} {[%emt 00:00:27]} Ke7 {[%clk 00:04:26]}
{[%emt 00:00:03]} 68. Ra7+ {[%clk 00:01:01]} {[%emt 00:00:29]} Ke6 {[%clk
00:04:51]} {[%emt 00:00:04]} 69. Ra6+ {[%clk 00:01:17]} {[%emt 00:00:14]} Ke7
{[%clk 00:05:18]} {[%emt 00:00:04]} 70. Ra7+ {[%clk 00:01:32]} {[%emt
00:00:15]} 1/2-1/2

[ePGN "0.1;DGT LiveChess/2.2.6"]

[Event "TePe Sigeman & Co Chess Tournament 2024"]
[Site "Elite Plaza Hotel, Gustav Adolfs Torg 49, Malmo, Sweden"]
[Date "2024.04.29"]
[Round "3.3"]
[White "Korobov, Anton"]
[Black "Keymer, Vincent"]
[Result "1/2-1/2"]
[TimeControl "90 minutes for 40 moves + 30 minutes for the rest of the game + 30 seconds per move from move one."]
[WhiteTitle "GM"]
[BlackTitle "GM"]
[WhiteFideId "14105730"]
[BlackFideId "12940690"]
[WhiteElo "2651"]
[BlackElo "2726"]

1. d4 {[%clk 01:30:57]} {[%emt 00:00:02]} Nf6 {[%clk 01:30:56]} {[%emt
00:00:05]} 2. c4 {[%clk 01:31:16]} {[%emt 00:00:10]} e6 {[%clk 01:31:22]}
{[%emt 00:00:04]} 3. Nc3 {[%clk 01:31:23]} {[%emt 00:00:23]} Bb4 {[%clk
01:31:48]} {[%emt 00:00:05]} 4. Nf3 {[%clk 01:31:44]} {[%emt 00:00:07]} O-O
{[%clk 01:32:12]} {[%emt 00:00:06]} 5. Qb3 {[%clk 01:30:14]} {[%emt 00:02:00]}
c5 {[%clk 01:31:13]} {[%emt 00:01:30]} 6. dxc5 {[%clk 01:29:58]} {[%emt
00:00:46]} Na6 {[%clk 01:21:06]} {[%emt 00:10:37]} 7. Bd2 {[%clk 01:29:40]}
{[%emt 00:00:48]} Qe7 {[%clk 01:11:17]} {[%emt 00:10:19]} 8. e3 {[%clk
01:14:32]} {[%emt 00:15:37]} Nxc5 {[%clk 01:10:19]} {[%emt 00:01:29]} 9. Qc2
{[%clk 01:14:39]} {[%emt 00:00:23]} b6 {[%clk 00:57:38]} {[%emt 00:13:12]} 10.
Be2 {[%clk 01:14:46]} {[%emt 00:00:21]} Bb7 {[%clk 00:57:31]} {[%emt 00:00:38]}
11. O-O {[%clk 01:15:08]} {[%emt 00:00:07]} Rac8 {[%clk 00:53:06]} {[%emt
00:04:55]} 12. Rac1 {[%clk 01:12:24]} {[%emt 00:03:14]} a5 {[%clk 00:38:40]}
{[%emt 00:14:57]} 13. a3 {[%clk 01:07:39]} {[%emt 00:05:15]} Bxc3 {[%clk
00:38:38]} {[%emt 00:00:31]} 14. Bxc3 {[%clk 01:07:49]} {[%emt 00:00:19]} Nfe4
{[%clk 00:36:04]} {[%emt 00:03:05]} 15. Be1 {[%clk 00:57:10]} {[%emt 00:11:09]}
d6 {[%clk 00:24:31]} {[%emt 00:12:04]} 16. b4 {[%clk 00:51:42]} {[%emt
00:05:56]} axb4 {[%clk 00:22:58]} {[%emt 00:02:04]} 17. axb4 {[%clk 00:51:34]}
{[%emt 00:00:38]} Nd7 {[%clk 00:23:26]} {[%emt 00:00:02]} 18. Nd2 {[%clk
00:50:41]} {[%emt 00:01:22]} Nxd2 {[%clk 00:17:30]} {[%emt 00:06:27]} 19. Qxd2
{[%clk 00:50:51]} {[%emt 00:00:20]} d5 {[%clk 00:13:55]} {[%emt 00:04:06]} 20.
f3 {[%clk 00:47:25]} {[%emt 00:03:55]} Ne5 {[%clk 00:07:31]} {[%emt 00:06:55]}
21. cxd5 {[%clk 00:47:02]} {[%emt 00:00:52]} exd5 {[%clk 00:07:58]} {[%emt
00:00:04]} 22. Rxc8 {[%clk 00:38:00]} {[%emt 00:09:32]} Rxc8 {[%clk 00:08:24]}
{[%emt 00:00:05]} 23. Qd4 {[%clk 00:38:09]} {[%emt 00:00:20]} Qe6 {[%clk
00:03:16]} {[%emt 00:05:38]} 24. Bc3 {[%clk 00:30:05]} {[%emt 00:08:33]} f6
{[%clk 00:03:44]} {[%emt 00:00:04]} 25. Ra1 {[%clk 00:30:12]} {[%emt 00:00:22]}
Qc6 {[%clk 00:03:51]} {[%emt 00:00:23]} 26. Bb2 {[%clk 00:27:41]} {[%emt
00:03:01]} b5 {[%clk 00:03:44]} {[%emt 00:00:38]} 27. Qc5 {[%clk 00:25:08]}
{[%emt 00:03:02]} Qxc5 {[%clk 00:02:21]} {[%emt 00:01:53]} 28. bxc5 {[%clk
00:25:25]} {[%emt 00:00:13]} Rxc5 {[%clk 00:01:35]} {[%emt 00:01:16]} 29. Bd4
{[%clk 00:25:32]} {[%emt 00:00:22]} Rc2 {[%clk 00:02:01]} {[%emt 00:00:06]} 30.
Bxb5 {[%clk 00:23:48]} {[%emt 00:02:14]} Nc6 {[%clk 00:01:24]} {[%emt
00:01:07]} 31. h4 {[%clk 00:21:17]} {[%emt 00:03:00]} Nxd4 {[%clk 00:01:32]}
{[%emt 00:00:22]} 32. exd4 {[%clk 00:21:45]} {[%emt 00:00:02]} Rb2 {[%clk
00:01:56]} {[%emt 00:00:07]} 33. Bd7 {[%clk 00:21:48]} {[%emt 00:00:26]} Kf8
{[%clk 00:00:46]} {[%emt 00:01:41]} 34. Ra7 {[%clk 00:21:44]} {[%emt 00:00:34]}
Rb6 {[%clk 00:00:50]} {[%emt 00:00:26]} 35. h5 {[%clk 00:21:31]} {[%emt
00:00:42]} h6 {[%clk 00:00:44]} {[%emt 00:00:37]} 36. Kf2 {[%clk 00:19:50]}
{[%emt 00:02:10]} Ba6 {[%clk 00:01:05]} {[%emt 00:00:10]} 37. Bf5 {[%clk
00:19:33]} {[%emt 00:00:46]} Bb7 {[%clk 00:00:43]} {[%emt 00:00:53]} 38. Bd7
{[%clk 00:19:33]} {[%emt 00:00:29]} Ba6 {[%clk 00:01:09]} {[%emt 00:00:04]} 39.
Ra8+ {[%clk 00:19:18]} {[%emt 00:00:44]} Ke7 {[%clk 00:01:36]} {[%emt
00:00:04]} 40. Bf5 {[%clk 00:19:42]} {[%emt 00:00:05]} Bb5 {[%clk 00:00:37]}
{[%emt 00:01:30]} 41. Ra7+ {[%clk 00:18:32]} {[%emt 00:01:39]} Kf8 {[%clk
00:27:56]} {[%emt 00:03:11]} 42. Bg6 {[%clk 00:34:36]} {[%emt 00:14:25]} Rb8
{[%clk 00:27:54]} {[%emt 00:00:33]} 43. g4 {[%clk 00:34:34]} {[%emt 00:00:32]}
Rd8 {[%clk 00:24:10]} {[%emt 00:04:14]} 44. Rf7+ {[%clk 00:33:30]} {[%emt
00:01:32]} Kg8 {[%clk 00:24:36]} {[%emt 00:00:06]} 45. Rb7 {[%clk 00:33:49]}
{[%emt 00:00:10]} Bd7 {[%clk 00:21:41]} {[%emt 00:03:25]} 46. Ke3 {[%clk
00:30:46]} {[%emt 00:03:33]} Kf8 {[%clk 00:22:04]} {[%emt 00:00:08]} 47. Kf4
{[%clk 00:30:56]} {[%emt 00:00:19]} Be6 {[%clk 00:20:28]} {[%emt 00:02:07]} 48.
Bf5 {[%clk 00:25:19]} {[%emt 00:06:07]} Bf7 {[%clk 00:20:53]} {[%emt 00:00:05]}
49. Kg3 {[%clk 00:22:43]} {[%emt 00:03:05]} Ra8 {[%clk 00:18:23]} {[%emt
00:03:01]} 50. Kh4 {[%clk 00:18:31]} {[%emt 00:04:42]} Ra4 {[%clk 00:07:31]}
{[%emt 00:11:22]} 51. Bg6 {[%clk 00:16:59]} {[%emt 00:02:02]} Bxg6 {[%clk
00:07:45]} {[%emt 00:00:16]} 52. hxg6 {[%clk 00:17:26]} {[%emt 00:00:03]} Rxd4
{[%clk 00:08:11]} {[%emt 00:00:04]} 53. Rf7+ {[%clk 00:17:36]} {[%emt
00:00:19]} Kg8 {[%clk 00:08:37]} {[%emt 00:00:05]} 54. Rd7 {[%clk 00:18:01]}
{[%emt 00:00:05]} Kf8 {[%clk 00:09:04]} {[%emt 00:00:04]} 55. Kg3 {[%clk
00:17:28]} {[%emt 00:01:02]} Ra4 {[%clk 00:07:07]} {[%emt 00:02:28]} 56. Rd8+
{[%clk 00:16:40]} {[%emt 00:01:17]} Ke7 {[%clk 00:07:33]} {[%emt 00:00:05]} 57.
Rg8 {[%clk 00:17:06]} {[%emt 00:00:03]} f5 {[%clk 00:07:12]} {[%emt 00:00:51]}
58. Rxg7+ {[%clk 00:17:28]} {[%emt 00:00:07]} Kf6 {[%clk 00:07:39]} {[%emt
00:00:04]} 59. Rf7+ {[%clk 00:17:49]} {[%emt 00:00:08]} Kxg6 {[%clk 00:08:04]}
{[%emt 00:00:05]} 60. Rxf5 {[%clk 00:18:15]} {[%emt 00:00:03]} Ra5 {[%clk
00:06:11]} {[%emt 00:02:24]} 61. Kf4 {[%clk 00:16:43]} {[%emt 00:02:01]} Kg7
{[%clk 00:05:30]} {[%emt 00:01:11]} 1/2-1/2

[ePGN "0.1;DGT LiveChess/2.2.6"]